Workbook

Sheet Figure V 2-1
B1: Figure V 2-1 : Nombre de postes offerts au recrutement externe dans la fonction publique de l’État (FPE) par voie d’accès
B3: Postes offerts au recrutement externe | C3: 2004 | D3: 2005 | E3: 2013 | F3: 2014 | G3: 2015 | H3: Part (en %) | I3: 2015/2014 Évolution (en %) | J3: 2015/2005 Évolution (en %)
B4: Total postes offerts sur concours | C4: =SUM(C5:C7) -> 40546 | D4: 40470 | E4: 28477 | F4: 49805 | G4: 36513 | H4: 97.67012626 | I4: =(G4-F4)/F4*100 -> -26.68808353 | J4: =(G4-D4)/D4*100 -> -9.777613047
B5: Concours externe | C5: 37934 | D5: 38013 | E5: 26610 | F5: 47565 | G5: 34549 | H5: =G5*100/$G$11 -> 92.41654184 | I5: =(G5-F5)/F5*100 -> -27.36465889 | J5: -9.112671981
B6: Concours unique | C6: 1341 | D6: 1426 | E6: 1360 | F6: 1246 | G6: 1177 | H6: =G6*100/$G$11 -> 3.148405735 | I6: =(G6-F6)/F6*100 -> -5.537720706 | J6: -17.46143058
B7: Troisième concours | C7: 1271 | D7: 1031 | E7: 507 | F7: 994 | G7: 787 | H7: 2.105178686 | I7: -20.8249497 | J7: -23.66634336
B8: Total postes offerts sans concours | C8: 2908 | D8: =SUM(D9:D10) -> 2958 | E8: =SUM(E9:E10) -> 1340 | F8: =F9+F10 -> 1499 | G8: =SUM(G9:G10) -> 871 | H8: 2.329873743 | I8: -41.8945964 | J8: -70.55442867
B9: Sans concours | C9: 2908 | D9: 2878 | E9: 1049 | F9: 1225 | G9: 566 | H9: 1.514016692 | I9: -53.79591837 | J9: -80.33356498
B10: Pacte | C10: 0 | D10: 80 | E10: 291 | F10: 274 | G10: 305 | H10: 0.8158570511 | I10: 11.31386861 | J10: 281.25
B11: Total postes offerts au recrutement externe | C11: =C8+C4 -> 43454 | D11: =D8+D4 -> 43428 | E11: =E8+E4 -> 29817 | F11: =F8+F4 -> 51304 | G11: =G8+G4 -> 37384 | H11: 100 | I11: -27.13238734 | J11: -13.91728839
B13: Source : Enquêtes annuelles Bilan des recrutements dans la fonction publique de l'État, DGAFP - Département des études, des statistiques et des systèmes d’information.

Sheet Figure V 2-2
B2: F V 2-2 : Évolution du nombre de postes offerts au recrutement externe aux concours de catégorie C
B17: Source : Enquêtes annuelles Bilan des recrutements dans la fonction publique de l'État, DGAFP - Département des études, des statistiques et des systèmes d’information.

Sheet Source Figure V 2-2
B3: Source Figure V 2-2: évolution comparée du nombre de postes offerts aux concours de catégorie C
C4: 2004 | D4: 2005 | E4: 2006 | F4: 2007 | G4: 2008 | H4: 2009 | I4: 2010 | J4: 2011 | K4: 2012 | L4: 2013 | M4: 2014 | N4: 2015
B5: Postes offerts sur concours | C5: 6676 | D5: 6148 | E5: 2756 | F5: 2537 | G5: 3542 | H5: 3131 | I5: 3428 | J5: 2303 | K5: 2128 | L5: 1995 | M5: 3262 | N5: 3325
B6: Postes offerts sans concours (hors Pacte) | C6: 2908 | D6: 2878 | E6: 194 | F6: 616 | G6: 1884 | H6: 1114 | I6: 1243 | J6: 1168 | K6: 1118 | L6: 1049 | M6: 1225 | N6: 566
B7: Pacte | D7: 80 | E7: 413 | F7: 266 | G7: 688 | H7: 564 | I7: 397 | J7: 374 | K7: 364 | L7: 291 | M7: 274 | N7: 305

Sheet Figure V 2-3
B2: Figure V 2-2 : Nombre de recrutements externes et part des recrutements sans concours dans la FPE
B4: Recrutements externes | C4: 2004 | D4: 2005 | E4: 2013* | F4: 2014* | G4: 2015* | H4: Part (en %) | I4: 2015/2014 Évolution (en %) | J4: 2015/2005 Évolution (en %)
B5: Total recrutements sur concours | C5: =SUM(C6:C8) -> 46034 | D5: 44237 | E5: 27385 | F5: 44391 | G5: 36110 | H5: 97.65794029 | I5: -42.53872076 | J5: -43.68870481
B6: Concours externe | C6: 43415 | D6: 42022 | E6: 25684 | F6: 42288 | G6: 34239 | H6: =G6*100/$G$12 -> 92.59790134 | I6: =(G6-F6)/F6*100 -> -19.03376844 | J6: =(G6-D6)/D6*100 -> -18.52125077
B7: Concours unique | C7: 1364 | D7: 1433 | E7: 1257 | F7: 1175 | G7: 1109 | H7: 2.999242752 | I7: -5.617021277 | J7: -22.60990928
B8: Troisième concours | C8: 1255 | D8: 782 | E8: 444 | F8: 928 | G8: 762 | H8: 2.060796192 | I8: -17.88793103 | J8: -2.557544757
B9: Total recrutements sans concours | C9: 3100 | D9: =SUM(D10:D11) -> 3140 | E9: =SUM(E10:E11) -> 1079 | F9: 1476 | G9: =SUM(G10:G11) -> 866 | H9: 2.342059714 | I9: -41.32791328 | J9: -72.42038217
B10: Sans concours | C10: 3100 | D10: 3068 | E10: 789 | F10: 1204 | G10: 566 | H10: 1.530722631 | I10: -52.99003322 | J10: -81.55149935
B11: Pacte | C11: 0 | D11: 72 | E11: 290 | F11: 272 | G11: 300 | H11: 0.8113370835 | I11: 10.29411765 | J11: 316.6666667
B12: Total recrutements externes | C12: =C9+C5 -> 49134 | D12: 47377 | E12: 28464 | F12: 45867 | G12: 36976 | H12: 100 | I12: -19.3843068 | J12: -21.95369061
B14: Source : Enquêtes annuelles Bilan des recrutements dans la fonction publique de l'État, DGAFP - Département des études, des statistiques et des systèmes d’information.
B15: * Les résultats estimés corrigent l’absence de réponse pour certains recrutements, essentiellement sans concours ou Pacte.

Sheet Figure V 2-4
C2: Figure V 2-4 : Évolution du nombre de postes offerts et des recrutements dans la FPE
C19: Source : Enquêtes annuelles Bilan des recrutements dans la fonction publique de l'État, DGAFP - Département des études, des statistiques et des systèmes d’information.
C21: proposition
C22: Figure V 2-3 : Évolution du nombre de postes offerts et des recrutés au recrutement externe dans la FPE
C36: Postes offerts | D36: 2003 | E36: Part (en %) | F36: 2004 | G36: 2005 | H36: 2006 | I36: 2007 | J36: 2008 | K36: 2009 | L36: Part (en %) | M36: 2010 | N36: Part (en %) | O36: 2011 | P36: Part (en %)
C37: Concours externe | D37: 44373 | E37: 87.9 | F37: 37934 | G37: 38013 | H37: 32602 | I37: 31713 | J37: 30935 | K37: 25560 | L37: 86.8 | M37: 25246 | N37: 86.3 | O37: 20202 | P37: 85
C38: Concours unique | D38: 2346 | E38: 4.6 | F38: 1341 | G38: 1426 | H38: 1411 | I38: 1733 | J38: 1886 | K38: 1777 | L38: 6 | M38: 1846 | N38: 6.3 | O38: 1720 | P38: 7.2
C39: 3ème concours | D39: 1730 | E39: 3.4 | F39: 1271 | G39: 1031 | H39: 897 | I39: 850 | J39: 724 | K39: 444 | L39: 1.5 | M39: 518 | N39: 1.8 | O39: 314 | P39: 1.3
C40: Autres recrutements externes (3) | D40: 2058 | E40: 4.1 | F40: 2908 | G40: 2958 | H40: 607 | I40: 882 | J40: 2572 | K40: 1678 | L40: 5.7 | M40: 1640 | N40: 5.6 | O40: 1542 | P40: 6.5
C41: Sans concours (1) | D41: 2058 | E41: 4.1 | F41: 2908 | G41: 2878 | H41: 194 | I41: 616 | J41: 1884 | K41: 1114 | L41: 3.8 | M41: 1243 | N41: 4.2 | O41: 1168 | P41: 4.9
C42: Pacte (sélection sans concours) (2) | D42: 0 | E42: 0 | F42: 0 | G42: 80 | H42: 413 | I42: 266 | J42: 688 | K42: 564 | L42: 1.9 | M42: 397 | N42: 1.4 | O42: 374 | P42: 1.6
C43: Total recrutement externe | D43: 50507 | E43: 100 | F43: 43454 | G43: 43428 | H43: 35517 | I43: 35178 | J43: 36117 | K43: 29459 | L43: 100 | M43: 29250 | N43: 100 | O43: 23778 | P43: 100

Sheet Source Figure V 2-4
B2: Source Figure V 2-4 | C2: Evolution du nombre de postes offerts au recrutement externe et des recrutés dans la FPE
C3: 2001 | D3: 2002 | E3: 2003 | F3: 2004 | G3: 2005 | H3: 2006 | I3: 2007 | J3: 2008 | K3: 2009 | L3: 2010 | M3: 2011 | N3: 2012 | O3: 2013 | P3: 2014 | Q3: 2015
B4: Recrutements externes | C4: 62040 | D4: 67050 | E4: 59292 | F4: 49134 | G4: 47377 | H4: 39172 | I4: 39867 | J4: 39692 | K4: 30317 | L4: 29678 | M4: 22338 | N4: 24971 | O4: 28464 | P4: 45867 | Q4: 36976
B5: Postes offerts au recrutement externe | C5: 49131 | D5: 55823 | E5: 50507 | F5: 43454 | G5: 43428 | H5: 35517 | I5: 35178 | J5: 36117 | K5: 29459 | L5: 29250 | M5: 23778 | N5: 25003 | O5: 29817 | P5: 51304 | Q5: 37384

Sheet Figure V 2-5
A2: Figure V 2-5 : Taux de renouvellement et flux annuel des nouveaux pensionnés et des recrutés externes dans la FPE
A17: Source : Enquêtes annuelles Bilan des recrutements dans la fonction publique de l'État, DGAFP - Département des études, des statistiques et des systèmes d’information ; FGE, Colter, DADS, Siasp, Insee ; Enquête SAE, Drees, traitement DGAFP - Département des études et de l’évaluation ; Service des retraites de l'État.
A18: (1) Flux annuel de pensions de droit direct entrées en paiement (titulaires FPE, hors militaires et ouvriers d'État).
A19: (2) Taux de renouvellement non disponible pour 2003.
A20: Résultats estimés pour l'année 2008, 2009 et 2011 à 2014.
A21: Lecture : En 2014, on dénombre 39 976 recrutés externes pour 41 344 départs à la retraite, soit un taux de renouvellement de 2,4%.

Sheet Source Figure V 2-5
B2: Source Figure V 2-5 : Flux annuel de nouveaux pensionnés et de recrutés externes
C4: Flux annuel de nouveaux pensionnés(1) | D4: Recrutés externes | E4: Taux de renouvellement | F4: effectif titulaires
B5: 2002 | C5: 53025 | D5: 67050 | E5: 0.03746808507 | F5: 1789523
B6: 2003(2) | C6: 61215 | D6: 59292 | E6: - | F6: -
B7: 2004 | C7: 57608 | D7: 49134 | E7: 0.02718385442 | F7: 1807470
B8: 2005 | C8: 56617 | D8: 47377 | E8: 0.02622470703 | F8: 1806579
B9: 2006 | C9: 61682 | D9: 39172 | E9: 0.02189131265 | F9: 1789385.617
B10: 2007 | C10: 64930 | D10: 39867 | E10: 0.02310720205 | F10: 1725306.245
B11: 2008 | C11: 65939 | D11: 39692 | E11: 0.02411358213 | F11: 1646043.287
B12: 2009 | C12: 54296 | D12: 30317 | E12: 0.01891669963 | F12: 1602658
B13: 2010 | C13: 56157 | D13: 29678 | E13: 0.01876029579 | F13: 1581958
B14: 2011 | C14: 59081 | D14: 22338 | E14: 0.014 | F14: 1551763
B15: 2012 | C15: 42905 | D15: 24971 | E15: 0.016 | F15: 1538841
B16: 2013 | C16: 45966 | D16: 28464 | E16: 0.019 | F16: 1529415
B17: 2014 | C17: 44148 | D17: 45867 | E17: 0.03 | F17: 1537855
B18: 2015 | C18: 41344 | D18: ='Figure V 2-3'!G12 -> 36976 | E18: 0.0241769584 | F18: 1 542 419
B20: Sources : FGE, Colter, DADS, SIASP,Insee; enquêtes SAE, Drees. Traitement DGAFP, département des études et des statistiques.
B21: Champ : emplois principaux, situés en métropole et DOM (hors Mayotte), hors COM et étranger. Hors bénéficiaires de contrats aidés.

Sheet Figure V 2-6
B2: Figure V 2-6 : Évolution de la sélectivité des recrutements externes dans la FPE par catégorie hiérarchique(1)
B19: Source : Enquêtes annuelles Bilan des recrutements dans la fonction publique de l'État, DGAFP - Département des études, des statistiques et des systèmes d’information.
B20: (1) La sélectivité au recrutement externe a été calculée à partir des résultats partiels obtenus (rapport présents/admis). Pour la catégorie C, elle est calculée hors recrutement externe sans concours et hors Pacte.
B21: Lecture : En 2015, la sélectivité des concours de catégorie A s’établit à 6,3 soit 1 admis pour 6 présents.

Sheet Source Figure V 2-6
A2: Source Figure V 2-6 : Évolution de la sélectivité (ensemble des recrutements externes) par catégorie hiérarchique de 2007 à 2015 (1)
B3: cat | C3: annee | D3: taux
B4: Catégorie A | C4: 2007 | D4: 9.2
C5: 2008 | D5: 8.8
C6: 2009 | D6: 9.6
C7: 2010 | D7: 8.9
C8: 2011 | D8: 9.5
C9: 2012 | D9: 8.3
C10: 2013 | D10: 6.9
C11: 2014 | D11: 5.8
C12: 2015 | D12: 6.261028442
B13: Catégorie B | C13: 2007 | D13: 14.4
C14: 2008 | D14: 11.9
C15: 2009 | D15: 17.7
C16: 2010 | D16: 21.3
C17: 2011 | D17: 18.7
C18: 2012 | D18: 16.2
C19: 2013 | D19: 19.9
C20: 2014 | D20: 15.8
C21: 2015 | D21: 14.6773405
B22: Catégorie C (1) | C22: 2007 | D22: 22.9
C23: 2008 | D23: 15.1
C24: 2009 | D24: 16.6
C25: 2010 | D25: 14.6
C26: 2011 | D26: 18.6
C27: 2012 | D27: 19.7
C28: 2013 | D28: 23.2
C29: 2014 | D29: 17.5
C30: 2015 | D30: 15.4481574
B55: Comparaison 2013/2014
B56: 2014 | C56: Données
B57: cat | C57: poste | D57: present | E57: admis | F57: recrute
B58: A | C58: 42519 | D58: 214292 | E58: 36863 | F58: 36402 | G58: =D58/E58 -> 5.813200228
B59: evolution A | C59: =(C58-C68)/C68*100 -> 80.78574769 | D59: =(D58-D68)/D68*100 -> 43.7969723
B60: B | C60: 4024 | D60: 62628 | E60: 3970 | F60: 4171 | G60: =D60/E60 -> 15.77531486
C61: =(C60-C69)/C69*100 -> 33.15684977 | D61: =(D60-D69)/D69*100 -> 4.757125652
B62: C | C62: 3929 | D62: 57116 | E62: 3270 | F62: 4462 | G62: =D62/E62 -> 17.46666667
C63: =(C62-C70)/C70*100 -> 65.43157895 | D63: =(D62-D70)/D70*100 -> 17.00741591
B64: Total général | C64: 50472 | D64: 334036 | E64: 44103 | F64: 45035 | G64: =D64/E64 -> 7.573997234
B66: 2013 | C66: Données
B67: cat | C67: poste | D67: present | E67: admis | F67: recrute
B68: A | C68: 23519 | D68: 149024 | E68: 21459 | F68: 21141 | G68: =D68/E68 -> 6.944592013
B69: B | C69: 3022 | D69: 59784 | E69: 3010 | F69: 3285 | G69: =D69/E69 -> 19.86179402
B70: C | C70: 2375 | D70: 48814 | E70: 2065 | F70: 3137 | G70: =D70/E70 -> 23.63874092
B71: Total général | C71: 28916 | D71: 257622 | E71: 26534 | F71: 27563 | G71: =D71/E71 -> 9.709127911
B73: evolution total | C73: =(C64-C71)/C71*100 -> 74.54696362 | D73: =(D64-D71)/D71*100 -> 29.66128669 | E73: =(E64-E71)/E71*100 -> 66.21316047 | F73: =(F64-F71)/F71*100 -> 63.38932627

Sheet Figure V 2-7
A1: Figure V 2-7 : Evolution de la part des recrutememnts externes dans la FPE par catégorie hiérarchique (en %)
A17: Source : Enquêtes annuelles Bilan des recrutements dans la fonction publique de l'État, DGAFP - Département des études, des statistiques et des systèmes d’information.
A18: Lecture : 73,6 % des agents recrutés en 2015 occupent des emplois de catégorie A dans la FPE.

Sheet Source Figure V 2-7
A1: Figure V 2-7 : Evolution de la part des recrutememnts externes dans la FPE de chaque catégorie hiérarchique (en %)
A3: Année | B3: A | C3: B | D3: C | E3: Ensemble
A4: 2011 | B4: 66.3 | C4: 15.7 | D4: 18 | E4: =SUM(B4:D4) -> 100
A5: 2012 | B5: 66.36498338 | C5: 15.98654439 | D5: 17.64847223 | E5: =SUM(B5:D5) -> 100
A6: 2013 | B6: 74.2727656 | C6: 11.54089376 | D6: 14.18634064 | E6: =SUM(B6:D6) -> 100
A7: 2014 | B7: 79.4 | C7: 9.1 | D7: 11.5 | E7: =SUM(B7:D7) -> 100
A8: 2015 | B8: 73.56934228 | C8: 12.38911727 | D8: 14.04154046 | E8: 100
A9: Source : Enquêtes annuelles Bilan des recrutements dans la fonction publique de l'État, DGAFP - Département des études, des statistiques et des systèmes d’information.
A10: Lecture : 73,6 % des agents recrutés en 2015 occupent des emplois de catégorie A dans la FPE.

Sheet Figure V2-8
A1: Figure V 2-8 : Évolution de la part des recrutements externes dans la FPE en catégorie A par niveau d'études requis (en %)
A2: (en %)
A18: Source : Enquêtes annuelles Bilan des recrutements dans la fonction publique de l'État, DGAFP - Département des études, des statistiques et des systèmes d’information.
A19: Lecture : En 2015, 90,3 % des candidats ont été recrutés sur des emplois de catégorie A nécessitant un niveau d'études équivalent au doctorat ou au master 2.

Sheet F V2-8 Source
B1: Figure V 2-8 : Évolution de la part des recrutements externes dans la FPE en catégorie A par niveau d'études requis (en %)
B2: (en %)
B3: Année | C3: Bac +2 | D3: Licence (Bac +3) | E3: Master 1 (Bac +4) | F3: Master 2 ou Doctorat (Bac +5 ou plus)
B4: 2011 | C4: 3.2 | D4: 13.3 | E4: 2.4 | F4: 81.1 | G4: =SUM(C4:F4) -> 100
B5: 2012 | C5: 3.1 | D5: 12.3 | E5: 2.7 | F5: 81.9 | G5: =SUM(C5:F5) -> 100
B6: 2013 | C6: 1.958280119 | D6: 8.712927487 | E6: 2.402913769 | F6: 86.92587862 | G6: =SUM(C6:F6) -> 100
B7: 2014 | C7: 0.9 | D7: 5.7 | E7: 0.7 | F7: 92.7 | G7: =SUM(C7:F7) -> 100
B8: 2015 | C8: 1.683637834 | D8: 6.422085799 | E8: 1.628496857 | F8: 90.26577951 | G8: 100
B9: Source : Enquêtes annuelles Bilan des recrutements dans la fonction publique de l'État, DGAFP - Département des études, des statistiques et des systèmes d’information.
B10: Lecture : En 2015, 90,3 % des candidats ont été recrutés sur des emplois de catégorie A nécessitant un niveau de diplôme équivalent au doctorat ou au master 2.

Sheet Figure V 2-9
A1: Figure V 2-9 : Niveau de diplôme des recrutés dans la FPE par catégorie hiérarchique en 2015
A2: (en %)
A18: Source : Enquêtes annuelles Bilan des recrutements dans la fonction publique de l'État, DGAFP - Département des études, des statistiques et des systèmes d’information.

Sheet Source Figure V 2-9
A1: Figure V 2-9 : Niveau de diplôme des lauréats au concours par catégorie hiérarchique sur l’ensemble des concours externes en 2014
A2: (en %)
A3: Catégorie | B3: Inconnu | C3: BEPC et sans diplôme | D3: Bac | E3: Bac +2 | F3: Bac +3 | G3: Bac +4 | H3: Bac +5 | I3: Doctorat
A4: A | B4: 9.157078263 | C4: 1.885821417 | D4: 0.06249310738 | E4: 0.3051134066 | F4: 1.341763776 | G4: 39.56181304 | H4: 45.44351726 | I4: 2.242399735 | J4: =SUM(B4:I4) -> 100
A5: A hors inconnu | C5: 2.075914535 | D5: 0.06879248948 | E5: 0.3358692133 | F5: 1.477015215 | G5: 43.54969246 | H5: 50.0242797 | I5: 2.468436387 | J5: 100
A6: B | B6: 16.52477625 | C6: 1.2879284 | D6: 24.25234665 | E6: 13.51233355 | F6: 15.78258022 | G6: 11.37306265 | H6: 16.93953285 | I6: 0.3274394237 | J6: 100
A7: B hors inconnu | C7: 1.542887029 | D7: 29.05334728 | E7: 16.18723849 | F7: 18.90690377 | G7: 13.62447699 | H7: 20.29288703 | I7: 0.3922594142 | J7: 100
A8: C | B8: 25.26964561 | C8: 14.52234206 | D8: 24.57627119 | E8: 11.97996918 | F8: 11.61402157 | G8: 10.34283513 | H8: 1.425269646 | I8: 0.2696456086 | J8: 100
A9: C hors inconnu | C9: 19.43298969 | D9: 32.88659794 | E9: 16.03092784 | F9: 15.54123711 | G9: 13.84020619 | H9: 1.907216495 | I9: 0.3608247423 | J9: 100
A10: Source : Enquêtes annuelles Bilan des recrutements dans la fonction publique de l'État, DGAFP - Département des études, des statistiques et des systèmes d’information.

Sheet Figure V 2-10
A1: Figure V 2-10 : Évolution de la part des recrutements externes dans la FPE en catégorie B par niveau d’études requis
A2: (en %)
A17: Source : Enquêtes annuelles Bilan des recrutements dans la fonction publique de l'État - DGAFP - Département des études, des statistiques et des systèmes d’information.
A18: Lecture : En 2015, 25,4 % des candidats ont été recrutés sur des emplois de catégorie B nécessitant un niveau d'études équivalent à Bac +2.

Sheet Source Figure V 2-10
A1: Figure V 2-10 : Évolution de la part des recrutements dans la FPE en la catégorie B par niveau d’étude requis
A2: (en %)
B3: 2011 | C3: 2012 | D3: 2013 | E3: 2014 | F3: 2015
A4: Bac | B4: 60.8 | C4: 65.98196393 | D4: 73.12024353 | E4: 68.5 | F4: 74.21960271
A5: Bac +2 | B5: 27 | C5: 30.31062124 | D5: 23.53120244 | E5: 28.2 | F5: 25.40929928
A6: Bac +3 | B6: 12.2 | C6: 3.70741483 | D6: 3.348554033 | E6: 3.26 | F6: 0.3710980135
B7: =SUM(B4:B6) -> 100 | C7: =SUM(C4:C6) -> 100 | D7: =SUM(D4:D6) -> 100 | E7: =SUM(E4:E6) -> 99.96 | F7: =SUM(F4:F6) -> 100
A8: Source : Enquêtes annuelles Bilan des recrutements dans la fonction publique de l'État - DGAFP - Département des études, des statistiques et des systèmes d’information.
A9: Lecture : En 2015, 25,4 % des candidats ont été recrutés sur des emplois de catégorie B nécessitant un niveau de diplôme équivalent à Bac+2.

Sheet Figure V 2-E
B2: Figure V 2-1E : Évolution du nombre de concours de la fonction publique de l'État dans lesquels l’épreuve de RAEP est introduite, par type de concours
B15: Source : Enquêtes annuelles Bilan des recrutements dans la fonction publique de l'État, DGAFP - Département des études, des statistiques et des systèmes d’information.
B16: 1) Externes : concours externe, 3ème concours, et concours unique. Lecture figure a : En 2015, la FPE a organisé 488 concours externes. Parmi ces concours, 18 comportaient une épreuve de RAEP. Lecture figure b : Les sélections internes (concours internes, examens professionnels et concours de titularisation réservés - loi Sauvadet) avec épreuve de RAEP représentent 44,5 % de l’ensemble des sélections internes en 2015.

Sheet Source Figure V 2-E
B2: Source Figure V 2-E
B3: Nombre des concours dans lesquels l’épreuve de RAEP est introduite, entre 2008 et 2015 par rapport au nombre total de concours
C5: 2008 | D5: 2009 | E5: 2010 | F5: 2011 | G5: 2012 | H5: 2013 | I5: 2014 | J5: 2015
B6: Externe avec RAEP | C6: 8 | D6: 9 | E6: 7 | F6: 12 | G6: 12 | H6: 13 | I6: 19 | J6: 18
B7: Externe total | C7: 654 | D7: 580 | E7: 565 | F7: 498 | G7: 475 | H7: 407 | I7: 478 | J7: 488
C9: 2008 | D9: 2009 | E9: 2010 | F9: 2011 | G9: 2012 | H9: 2013 | I9: 2014 | J9: 2015
B10: Interne avec RAEP | C10: 14 | D10: 11 | E10: 48 | F10: 62 | G10: 68 | H10: 205 | I10: 219 | J10: 193
B11: Interne total | C11: 544 | D11: 500 | E11: 498 | F11: 534 | G11: 489 | H11: 607 | I11: 708 | J11: 434
C13: 2008 | D13: 2009 | E13: 2010 | F13: 2011 | G13: 2012 | H13: 2013 | I13: 2014 | J13: 2015
B14: Externe | C14: 1.22324159 | D14: 1.551724138 | E14: 1.238938053 | F14: 2.409638554 | G14: 2.526315789 | H14: 3.194103194 | I14: 3.974895397 | J14: =J6/J7*100 -> 3.68852459
B15: Interne | C15: 2.573529412 | D15: 2.2 | E15: 9.638554217 | F15: 11.61048689 | G15: 13.90593047 | H15: 33.77265239 | I15: 30.93220339 | J15: =J10/J11*100 -> 44.47004608
B16: Ensemble | C16: 1.83639399 | D16: 1.851851852 | E16: 5.174035748 | F16: 7.170542636 | G16: 8.298755187 | H16: 21.49901381 | I16: 20.06745363 | J16: =(J6+J10)/(J7+J11)*100 -> 22.88503254

Sheet Figure V 2-11
B2: Figure V 2-11 : Part des femmes recrutées en catégorie A sur les postes d'enseignants et hors enseignants dans la FPE (en %)
B15: Source : Enquêtes annuelles Bilan des recrutements dans la fonction publique de l'État, DGAFP - Département des études, des statistiques et des systèmes d’information.

Sheet Source Figure V 2-11
B3: Source Figure V 2-12
D4: 2010 | E4: 2011 | F4: 2012 | G4: 2013 | H4: 2014 | I4: 2015
B5: enseignants | C5: H | D5: 27.57492475 | E5: 33.40733591 | F5: 29.5 | G5: 27.5 | H5: 27.4 | I5: 28.4
C6: F | D6: 72.42507525 | E6: 66.59266409 | F6: 70.5 | G6: 72.5 | H6: 72.6 | I6: 71.6
D8: 2010 | E8: 2011 | F8: 2012 | G8: 2013 | H8: 2014 | I8: 2015
B9: hors enseignants | C9: H | D9: 51.74630384 | E9: 48.7300517 | F9: 42.2 | G9: 43.7 | H9: 41.8 | I9: 45.3
C10: F | D10: 48.25369616 | E10: 51.2699483 | F10: 57.8 | G10: 56.3 | H10: 58.2 | I10: 54.7

Sheet Figure V 2-12
B3: Figure V 2-12 : Part des femmes parmi l'ensemble des recrutés dans la FPE par niveau de diplôme (en %)
B4: Niveau de diplôme | C4: 2011 | D4: 2012 | E4: 2013 | F4: 2014 | G4: 2015
B5: Bac +5 et plus | C5: 64.4 | D5: 68.2 | E5: 72.2 | F5: 68.6 | G5: 72.7
B6: dont doctorat | C6: - | D6: - | E6: - | F6: - | G6: 54.5
B7: Bac +4 | C7: 60.8 | D7: 63.4 | E7: 62.6 | F7: 73.6 | G7: 80.7
B8: Bac +3 | C8: 54.4 | D8: 63.2 | E8: 62.2 | F8: 56 | G8: 47.6
B9: Bac +2 | C9: 50.5 | D9: 48.6 | E9: 48.3 | F9: 46.9 | G9: 43.1
B10: Bac | C10: 44.5 | D10: 35.4 | E10: 35.8 | F10: 36.3 | G10: 31
B11: BEPC | C11: 48.1 | D11: 43.8 | E11: 35.9 | F11: 32.1 | G11: 32.3
B12: Sans diplôme | C12: 22.35294118 | D12: 54.43037975 | E12: 55.42168675 | F12: 63.88888889 | G12: 85.5
B13: Diplôme inconnu | C13: 54.5 | D13: 62.5 | E13: 61.6 | F13: 68.4 | G13: 63.8
B14: Source : Enquêtes annuelles Bilan des recrutements dans la fonction publique de l'État, DGAFP - Département des études, des statistiques et des systèmes d’information.

Sheet Figure V 2-13
B2: Figure V 2-13 : Nombre de recrutements externes par ministère
H3: Évolution (en %)
B4: Ministères | C4: 2004 | D4: 2005 | E4: 2013 | F4: 2014 | G4: 2015 | H4: 2015/2014 | I4: 2015/2005
B5: Affaires étrangères et Développement international | C5: 55 | D5: 69 | E5: 86 | F5: 70 | G5: 67 | H5: =(G5-F5)/F5*100 -> -4.285714286 | I5: =(G5-D5)/D5*100 -> -2.898550725
B6: Agriculture, Agroalimentaire et Forêt/Enseignement privé agricole | C6: 772 | D6: 656 | E6: 498 | F6: 487 | G6: 458 | H6: =(G6-F6)/F6*100 -> -5.954825462 | I6: =(G6-D6)/D6*100 -> -30.18292683
B7: Ministères économiques et financiers(1) : Économie, Redressement productif et Numérique, Finances et Comptes publics | C7: 3869 | D7: 2806 | E7: 2720 | F7: 2969 | G7: 3528 | H7: 18.82788818 | I7: 25.73057733
B8: Culture et Communication | C8: 23 | D8: 175 | E8: 38 | F8: 199 | G8: 113 | H8: -43.2160804 | I8: -35.42857143
B9: Défense | C9: 350 | D9: 1125 | E9: 159 | F9: 110 | G9: 253 | H9: 130 | I9: -77.51111111
B10: Écologie, Développement durable et Énergie, Logement, Égalité des territoires et Ruralité(1) | C10: 1061 | D10: 997 | E10: 676 | F10: 654 | G10: 528 | H10: -19.26605505 | I10: -47.04112337
B11: Ministères de l'enseignement : Éducation nationale, Enseignement supérieur et Recherche(1) | C11: 35237 | D11: 34083 | E11: 20230 | F11: 35726 | G11: 27041 | H11: -24.31002631 | I11: -20.66132676
B12: Intérieur, Outre-mer(1) | C12: 4402 | D12: 4389 | E12: 1608 | F12: 1796 | G12: 1837 | H12: 2.28285078 | I12: -58.14536341
B13: Justice | C13: 2269 | D13: 2045 | E13: 1619 | F13: 2979 | G13: 2349 | H13: -21.14803625 | I13: 14.86552567
B14: Ministères sociaux : | C14: =SUM(C15:C16) -> 630 | D14: =SUM(D15:D16) -> 540 | E14: =SUM(E15:E16) -> 376 | F14: =SUM(F15:F16) -> 423 | G14: =SUM(G15:G16) -> 365 | H14: =(G14-F14)/F14*100 -> -13.71158392 | I14: =(G14-D14)/D14*100 -> -32.40740741
B15: Affaires sociales, Droits des femmes, Ville, Jeunesse et Sports | C15: 575 | D15: 447 | E15: 319 | F15: 356 | G15: 326 | H15: -8.426966292 | I15: -27.06935123
B16: Travail, Emploi, et Dialogue social | C16: 55 | D16: 93 | E16: 57 | F16: 67 | G16: 39 | H16: -41.79104478 | I16: -58.06451613
B17: Services du Premier Ministre(2) | C17: 466 | D17: 492 | E17: 454 | F17: 454 | G17: 437 | H17: -3.744493392 | I17: -11.17886179
B18: Total | C18: =SUM(C5:C14,C17) -> 49134 | D18: 47377 | E18: 28 464(1) | F18: 45 867(1) | G18: 36976(1) | H18: -19.3843068 | I18: -20.92386655
B20: Source : Enquêtes annuelles Bilan des recrutements dans la fonction publique de l'État, DGAFP - Département des études, des statistiques et des systèmes d’information.
B21: Note : L'appellation des ministères renvoie à la nomenclature d'exécution de la loi de finances initiale de l'année.
B22: (1) Certains ministères n'ont pas pu fournir tous les résultats de concours en 2013 (Éducation nationale, Intérieur, Écologie, Économie),en 2014 (Éducation nationale et Écologie) et en 2015(Éducation nationale). Cela concerne essentiellement les recrutements sans concours et les Pacte. Les résultats présentés sont estimés. Ils prennent en compte le nombre de postes offerts aux concours pour lesquels les résultats n'ont pas été obtenus, en faisant l'hypothèse qu'ils ont été pourvus en nombre équivalent.
B23: (2) Y compris l’ENA et les IRA.

Sheet Figure V 2-14
B2: Figure V 2-14 : Profils comparés des recrutements externes dans la FPT et la FPE en 2015 (en %)
B17: Source : Enquêtes annuelles Bilan des recrutements dans la fonction publique de l'État, DGAFP - Département des études, des statistiques et des systèmes d’information ; Association nationale des directeurs et directeurs adjoints des centres de gestion ; Bureau du recrutement et des concours de la Ville de Paris ; Centre d'action sociale de la Ville de Paris.
B18: (1) Pour la FPE en catégorie C sans concours, les résultats sont estimés.

Sheet Source Figure V 2-14
B3: Source Figure V 2-14
C5: FPT | D5: FPE | G5: FPT | H5: FPE
B6: A et A+ | C6: =C14/$C$18*100 -> 7.639775338 | D6: =D14/$D$18*100 -> 73.56934228 | F6: Sur concours | G6: =SUM(C14:C16)/C18*100 -> 42.06025019 | H6: =SUM(D14:D16)/D18*100 -> 97.65794029
B7: B | C7: =C15/$C$18*100 -> 15.56995149 | D7: =D15/$D$18*100 -> 12.38911727 | F7: Sans concours | G7: =C17/C18*100 -> 57.93974981 | H7: =D17/D18*100 -> 2.342059714
B8: C (sur concours) | C8: =C16/$C$18*100 -> 18.85052336 | D8: =D16/$D$18*100 -> 11.69948074
B9: C (sans concours)(1) | C9: =C17/$C$18*100 -> 57.93974981 | D9: =D17/$D$18*100 -> 2.342059714
C10: =SUM(C6:C9) -> 100 | D10: =SUM(D6:D9) -> 100
B12: effectif en valeur | G12: Formule
C13: FPT | D13: FPE | G13: FPT | H13: FPE
B14: A et A+ | C14: 2394 | D14: 27203 | F14: A et A+ | G14: =SUM('[1]F 3.3-1 FPT général'!$E$26:$E$27) -> 2323 | H14: 27203
B15: B | C15: 4879 | D15: 4581 | F15: B | G15: ='[1]F 3.3-1 FPT général'!$E$28 -> 4744 | H15: 4581
B16: C (avec concours) | C16: 5907 | D16: 4326 | F16: C (avec concours) | G16: ='[1]F 3.3-1 FPT général'!$F$29 -> 5445 | H16: 4326
B17: C (recrutement direct)(1) | C17: 18156 | D17: 866 | F17: C (recrutement direct)(1) | G17: ='[1]F 3.3-1 FPT général'!$E$13 -> 17000 | H17: 866
C18: =SUM(C14:C17) -> 31336 | D18: =SUM(D14:D17) -> 36976 | G18: =SUM(G14:G17) -> 29512 | H18: =SUM(H14:H17) -> 36976

Sheet Figure V 2-15
B2: Figure V 2-15 : Nombre de recrutements externes dans la FPT par catégorie hiérarchique
B19: Sources : Association nationale des directeurs et directeurs adjoints des centres de gestion ; Bureau du recrutement et des concours de la Ville de Paris ; Centre d'action sociale de la Ville de Paris.

Sheet Source Figure V 2-15
A3: Source Figure V2-15
B4: 2011 | C4: 2012 | D4: 2013 | E4: 2014 | F4: 2015
A5: A et A+ | B5: 2848 | C5: 2502 | D5: 2019 | E5: 2656 | F5: ='[2]F 3.3-1 FPT général'!$E$25+'[2]F 3.3-1 FPT général'!$E$26 -> 2394
A6: B | B6: 5536 | C6: 4644 | D6: 5441 | E6: 4250 | F6: ='[2]F 3.3-1 FPT général'!$E$27 -> 4879
A7: C (sur concours) | B7: 5251 | C7: 6375 | D7: 4950 | E7: 6592 | F7: ='[2]F 3.3-1 FPT général'!$E$28-'[2]F 3.3-1 FPT général'!$E$23-'[2]F 3.3-1 FPT général'!$E$13 -> 5907
A8: C (sans concours) | B8: 22862 | C8: 18643 | D8: 22235 | E8: 17189 | F8: ='[2]F 3.3-1 FPT général'!$E$13+'[2]F 3.3-1 FPT général'!$E$23 -> 18156

Sheet Figure V 2-16
B2: Figure V 2-16 Sélectivité des recrutements externes sur concours dans la FPT par catégorie hiérarchique
B19: Sources : Association nationale des directeurs et directeurs adjoints des centres de gestion ; Bureau du recrutement et des concours de la Ville de Paris ; Centre d'action sociale de la Ville de Paris.
B20: (1) Concours de catégorie C hors recrutements directs de la FPT (données incomplètes).

Sheet Source Figure V 2-16
B2: Source Figure 2-16
D3: FPT hors Ville de Paris | E3: Ville de Paris (y compris Centre d'action sociale)
B4: A | C4: 2011 | D4: 6.2 | E4: 13.6
C5: 2012 | D5: 7 | E5: 18.3
C6: 2013 | D6: 3.9 | E6: 8.5
C7: 2014 | D7: 6.3 | E7: 8.1
C8: 2015 | D8: 3.641059028 | E8: 9.766666667
B9: B | C9: 2011 | D9: 6 | E9: 9.9
C10: 2012 | D10: 4.6 | E10: 8.3
C11: 2013 | D11: 6.1 | E11: 16.9
C12: 2014 | D12: 5 | E12: 12.2
C13: 2015 | D13: 5.861315448 | E13: 11.98832685
B14: C (1) | C14: 2011 | D14: 6.6 | E14: 5.5
C15: 2012 | D15: 6.7 | E15: 9.9
C16: 2013 | D16: 6.6 | E16: 8.1
C17: 2014 | D17: 7.3 | E17: 7.1
C18: 2015 | D18: 6.77157172 | E18: 8.218146718
